fUSD/lending_fUSD_20260126
["ID","MTS","AMOUNT","RATE_DAILY","PERIOD"]
[403664398,1769455779972,-222.53705238,0.00015864,2]
[403664399,1769455783012,-359.22477413,0.00015864,2]
[403664400,1769455785733,-300.0,0.00015864,2]
[403664401,1769455787297,-178.70738696,0.00015864,2]
[403664402,1769455795729,-244.33214218,0.00015864,2]
[403664403,1769455797153,-286.6730619,0.00015864,2]
[403664406,1769455800654,-213.3269381,0.00015864,2]
[403664407,1769455802769,-264.04625303,0.00015863,2]
[403664408,1769455805010,-263.99532567,0.00015863,2]
[403664409,1769455808692,-161.55604627,0.00015766,2]
[403664410,1769455810665,-159.27633665,0.00015766,2]
[403664411,1769455812677,-167.44743681,0.00015766,2]
[403664415,1769455824508,-211.16229621,0.00015766,2]
[403664416,1769455827561,-297.5802169,0.00015766,2]
[403664417,1769455829303,-323.15251754,0.00015766,2]
[403664430,1769455831599,-7840.74120773,0.00015766,2]
[403664432,1769455831613,-671.9584213,0.00015863,2]
[403664433,1769455831622,-500.0,0.00015863,2]
[403664434,1769455831632,-500.0,0.00015863,2]
[403664435,1769455831641,-500.0,0.00015863,2]
[403664436,1769455831651,-554.41535433,0.00015863,2]
[403664437,1769455831661,-500611.42127958,0.00015864,2]
[403664438,1769455831673,-22004.08666312,0.00015864,2]
[403664440,1769455831690,-404.2,0.00015864,2]
[403664443,1769455831957,-1627.60462382,0.00015864,2]
[403664448,1769455837789,-500.0,0.00015863,2]
[403664449,1769455837805,-500.0,0.00015863,2]
[403664450,1769455837820,-71.11189023,0.00015863,2]
[403664451,1769455837866,-428.88810977,0.00015863,2]
[403664452,1769455837880,-211.50936651,0.00015864,2]
[403664453,1769455837898,-837.57754225,0.00015864,2]
[403664454,1769455837916,-476.81295156,0.00015864,2]
[403664631,1769455839818,-330.14659575,0.00015863,2]
[403664632,1769455839888,-169.85340425,0.00015863,2]
[403664633,1769455839897,-500.0,0.00015863,2]
[403664634,1769455839906,-500.0,0.00015863,2]
[403664635,1769455839915,-2408.3200498,0.00015864,2]
[403664636,1769455839926,-7619.53142234,0.00015864,2]
[403664638,1769455839937,-7616.11512361,0.00015864,2]
[403664641,1769455839948,-303.028913,0.00015864,2]
[403664643,1769455839959,-9347.2832205,0.00015864,2]
[403664647,1769455839985,-437846.95411499,0.00015864,2]
[403664648,1769455839996,-5166.21725149,0.00015866,2]
[403664650,1769455840005,-500.0,0.0001591,2]
[403664652,1769455840015,-159.99,0.00015918,2]
[403664654,1769455840024,-647.68539864,0.00015955,2]
[403664656,1769455840033,-500.0,0.00015955,2]
[403664658,1769455840043,-500.0,0.00015955,2]
[403664660,1769455840052,-1099.00428935,0.00015956,2]
[403664662,1769455840061,-1101.50176999,0.00015956,2]
[403664664,1769455840071,-151.0,0.00015956,2]
[403664666,1769455840081,-151.0,0.00015956,2]
[403664668,1769455840090,-151.0,0.00015956,2]
[403664670,1769455840099,-151.0,0.00015956,2]
[403664671,1769455840108,-151.0,0.00015956,2]
[403664673,1769455840118,-151.0,0.00015956,2]
[403664674,1769455840127,-151.0,0.00015956,2]
[403664675,1769455840137,-151.0,0.00015956,2]
[403664676,1769455840146,-500.0,0.00015956,2]
[403664677,1769455840156,-500.0,0.00015965,2]
[403664678,1769455840165,-151.0,0.00015965,2]
[403664679,1769455840175,-890.0,0.00015965,2]
[403664680,1769455840185,-500.0,0.00015965,2]
[403664681,1769455840194,-500.0,0.00015965,2]
[403664682,1769455840205,-500.0,0.00015965,2]
[403664683,1769455840215,-500.0,0.00015965,2]
[403664684,1769455840224,-500.0,0.00015965,2]
[403664686,1769455840233,-500.0,0.00015965,2]
[403664688,1769455840243,-500.0,0.00015965,2]
[403664690,1769455840252,-500.0,0.00015965,2]
[403664692,1769455840261,-500.0,0.00015965,2]
[403664693,1769455840270,-500.0,0.00015965,2]
[403664694,1769455840279,-500.0,0.00015965,2]
[403664696,1769455840288,-500.0,0.00015965,2]
[403664698,1769455840298,-500.0,0.00015965,2]
[403664699,1769455840309,-500.0,0.00015965,2]
[403664700,1769455840318,-500.0,0.00015965,2]
[403664701,1769455840327,-500.0,0.00015965,2]
[403664702,1769455840337,-500.0,0.00015965,2]
[403664703,1769455840347,-500.0,0.00015965,2]
[403664704,1769455840357,-500.0,0.00015965,2]
[403664705,1769455840367,-500.0,0.00015965,2]
[403664706,1769455840376,-500.0,0.00015965,2]
[403664707,1769455840385,-500.0,0.00015965,2]
[403664708,1769455840394,-500.0,0.00015965,2]
[403664709,1769455840403,-506.5749784,0.00015965,2]
[403664710,1769455840413,-500.0,0.00015965,2]
[403664711,1769455840422,-500.0,0.00015965,2]
[403664712,1769455840432,-500.0,0.00015965,2]
[403664713,1769455840441,-500.0,0.00015965,2]
[403664714,1769455840450,-500.0,0.00015965,2]
[403664715,1769455840460,-502.44260764,0.00015965,2]
[403664716,1769455840469,-500.0,0.00015965,2]
[403664717,1769455840478,-500.0,0.00015965,2]
[403664718,1769455840488,-500.0,0.00015965,2]
[403664719,1769455840497,-2000.0,0.00015965,2]
[403664720,1769455840506,-200.0,0.00015965,2]
[403664721,1769455840516,-562.4384429,0.00015965,2]
[403664722,1769455840526,-357.03783728,0.00015965,2]
[403664723,1769455840535,-500.0,0.00015965,2]
[403664724,1769455840544,-476.08886049,0.00015965,2]
[403664725,1769455840553,-500.0,0.00015965,2]
[403664726,1769455840562,-500.0,0.00015965,2]
[403664727,1769455840571,-500.0,0.00015965,2]
[403664728,1769455840580,-500.0,0.00015965,2]
[403664729,1769455840590,-500.0,0.00015965,2]
[403664730,1769455840599,-1000.0,0.00015966,2]
[403664731,1769455840609,-150.0,0.00016,2]
[403664732,1769455840621,-9160.91605802,0.00016003,2]
[403664733,1769455840631,-500.0,0.0001602,2]
[403664734,1769455840640,-500.0,0.0001602,2]
[403664735,1769455840650,-500.0,0.0001602,2]
[403664736,1769455840659,-500.0,0.00016065,2]
[403664737,1769455840668,-500.0,0.00016065,2]
[403664738,1769455840678,-500.0,0.00016065,2]
[403664739,1769455840688,-500.0,0.00016065,2]
[403664740,1769455840697,-500.0,0.00016065,2]
[403664741,1769455840707,-500.0,0.00016065,2]
[403664742,1769455840716,-500.0,0.00016075,2]
[403664743,1769455840725,-500.0,0.00016075,2]
[403664744,1769455840734,-1217.22831935,0.00016081,2]
[403664745,1769455840744,-500.0,0.00016091,2]
[403664746,1769455840753,-500.0,0.00016091,2]
[403664747,1769455840763,-500.0,0.00016091,2]
[403664748,1769455840772,-500.0,0.00016091,2]
[403664749,1769455840782,-500.0,0.00016091,2]
[403664750,1769455840791,-500.0,0.00016091,2]
[403664751,1769455840801,-500.0,0.00016091,2]
[403664752,1769455840810,-500.0,0.00016091,2]
[403664753,1769455840819,-500.0,0.00016091,2]
[403664754,1769455840829,-509.44466748,0.00016091,2]
[403664755,1769455840839,-500.0,0.00016091,2]
[403664756,1769455840849,-500.0,0.00016091,2]
[403664757,1769455840857,-5166.21725144,0.00016092,2]
[403664758,1769455840866,-335.69,0.000161,2]
[403664759,1769455840876,-150.0,0.000161,2]
[403664760,1769455840886,-200.0,0.00016125,2]
[403664761,1769455840896,-500.0,0.00016129,2]
[403664762,1769455840905,-500.0,0.00016129,2]
[403664763,1769455840915,-500.0,0.00016165,2]
[403664764,1769455840924,-506.97630376,0.00016165,2]
[403664765,1769455840933,-342.1996177,0.00016165,2]
[403664766,1769455840943,-500.0,0.00016165,2]
[403664767,1769455840952,-500.0,0.00016165,2]
[403664768,1769455840962,-500.0,0.00016165,2]
[403664769,1769455840971,-500.0,0.00016165,2]
[403664770,1769455840981,-500.0,0.00016165,2]
[403664771,1769455840992,-500.0,0.00016184,2]
[403664772,1769455841002,-500.0,0.00016184,2]
[403664773,1769455841013,-397.75906052,0.00016239,2]
[403664774,1769455841023,-500.0,0.00016239,2]
[403664775,1769455841034,-890.0,0.00016239,2]
[403664776,1769455841046,-358.0,0.0001624,2]
[403664777,1769455841056,-9160.91605802,0.0001624,2]
[403664778,1769455841065,-298.0,0.00016242,2]
[403664779,1769455841075,-200.0,0.00016286,2]
[403664780,1769455841087,-282.64390118,0.00016294,2]
[403664781,1769455841097,-612.0,0.00016297,2]
[403664782,1769455841106,-200.0,0.00016309,2]
[403664783,1769455841116,-5166.21725144,0.00016318,2]
[403664784,1769455841126,-336.65560897,0.00016333,2]
[403664785,1769455841135,-275.48990067,0.00016367,2]
[403664786,1769455841144,-2851.17,0.00016374,2]
[403664787,1769455841154,-500.0,0.00016437,2]
[403664788,1769455841163,-500.0,0.00016438,2]
[403664789,1769455841172,-197.58025142,0.00016438,2]
[403664790,1769455841182,-500.0,0.00016438,2]
[403664791,1769455841191,-500.0,0.00016438,2]
[403664792,1769455841201,-165.97106181,0.00016438,2]
[403664793,1769455841210,-500.0,0.00016438,2]
[403664794,1769455841219,-260.0,0.00016438,2]
[403664795,1769455841229,-316.79448902,0.00016438,2]
[403664796,1769455841238,-235.18438983,0.00016438,2]
[403664797,1769455841247,-500.0,0.00016438,2]
[403664798,1769455841256,-500.0,0.00016438,2]
[403664799,1769455841266,-500.0,0.00016438,2]
[403664800,1769455841275,-500.0,0.00016438,2]
[403664801,1769455841285,-500.0,0.00016438,2]
[403664802,1769455841295,-500.0,0.00016438,2]
[403664803,1769455841305,-500.0,0.00016438,2]
[403664804,1769455841314,-500.0,0.00016438,2]
[403664805,1769455841324,-500.0,0.00016438,2]
[403664806,1769455841335,-500.0,0.00016438,2]
[403664807,1769455841345,-500.0,0.00016438,2]
[403664808,1769455841355,-525.69904591,0.00016438,2]
[403664809,1769455841365,-500.0,0.00016438,2]
[403664810,1769455841375,-500.0,0.00016438,2]
[403664811,1769455841385,-1057.32995604,0.00016438,2]
[403664812,1769455841395,-1057.32995604,0.00016438,2]
[403664813,1769455841405,-1057.32995604,0.00016438,2]
[403664814,1769455841415,-1057.32995604,0.00016438,2]
[403664815,1769455841425,-1057.32995604,0.00016438,2]
[403664816,1769455841435,-1057.32995604,0.00016438,2]
[403664817,1769455841444,-1057.32995604,0.00016438,2]
[403664818,1769455841684,-1057.32995604,0.00016438,2]
[403664819,1769455841695,-1057.32995604,0.00016438,2]
[403664820,1769455841704,-1057.32995604,0.00016438,2]
[403664821,1769455841713,-1057.32995604,0.00016438,2]
[403664822,1769455841723,-1057.32995604,0.00016438,2]
[403664823,1769455841732,-1057.32995604,0.00016438,2]
[403664824,1769455841741,-1057.32995604,0.00016438,2]
[403664825,1769455841751,-1057.32995604,0.00016438,2]
[403664826,1769455841761,-1057.32995604,0.00016438,2]
[403664827,1769455841771,-1057.32995604,0.00016438,2]
[403664828,1769455841780,-1057.32995604,0.00016438,2]
[403664829,1769455841789,-1057.32995604,0.00016438,2]
[403664830,1769455841799,-1057.32995604,0.00016438,2]
[403664831,1769455841809,-1057.32995604,0.00016438,2]
[403664832,1769455841819,-1057.32995604,0.00016438,2]
[403664833,1769455841828,-1057.32995604,0.00016438,2]
[403664834,1769455841838,-1057.32995604,0.00016438,2]
[403664835,1769455841847,-1057.32995604,0.00016438,2]
[403664836,1769455841858,-1057.32995604,0.00016438,2]
[403664837,1769455841867,-1057.32995604,0.00016438,2]
[403664838,1769455841877,-1057.32995604,0.00016438,2]
[403664839,1769455841887,-1057.32995604,0.00016438,2]
[403664840,1769455841897,-1057.32995604,0.00016438,2]
[403664841,1769455841907,-1057.32995604,0.00016438,2]
[403664842,1769455841917,-1057.32995604,0.00016438,2]
[403664843,1769455841926,-1057.32995604,0.00016438,2]
[403664844,1769455841936,-1057.32995604,0.00016438,2]
[403664845,1769455841945,-1057.32995604,0.00016438,2]
[403664846,1769455841954,-1057.32995604,0.00016438,2]
[403664847,1769455841964,-1057.32995604,0.00016438,2]
[403664848,1769455841973,-1057.32995604,0.00016438,2]
[403664849,1769455841983,-1057.32995604,0.00016438,2]
[403664850,1769455841993,-1057.32995604,0.00016438,2]
[403664851,1769455842003,-1057.32995604,0.00016438,2]
[403664852,1769455842012,-1057.32995604,0.00016438,2]
[403664853,1769455842021,-1057.32995604,0.00016438,2]
[403664854,1769455842031,-1057.32995604,0.00016438,2]
[403664855,1769455842040,-1057.32995604,0.00016438,2]
[403664856,1769455842050,-1057.32995604,0.00016438,2]
[403664857,1769455842059,-1057.32995604,0.00016438,2]
[403664858,1769455842068,-1057.32995604,0.00016438,2]
[403664859,1769455842078,-1057.32995604,0.00016438,2]
[403664860,1769455842087,-1057.32995604,0.00016438,2]
[403664861,1769455842096,-1029.83937717,0.00016438,2]
[403664862,1769455842105,-1029.83937717,0.00016438,2]
[403664863,1769455842114,-1029.83937717,0.00016438,2]
[403664864,1769455842123,-1029.83937717,0.00016438,2]
[403664865,1769455842133,-1029.83937717,0.00016438,2]
[403664866,1769455842142,-1029.83937717,0.00016438,2]
[403664867,1769455842151,-1029.83937717,0.00016438,2]
[403664868,1769455842160,-1029.83937717,0.00016438,2]
[403664869,1769455842169,-1029.83937717,0.00016438,2]
[403664870,1769455842182,-1029.83937717,0.00016438,2]
[403664871,1769455842192,-1029.83937717,0.00016438,2]
[403664872,1769455842201,-1029.83937717,0.00016438,2]
[403664873,1769455842211,-1029.83937717,0.00016438,2]
[403664874,1769455842220,-1029.83937717,0.00016438,2]
[403664875,1769455842229,-1029.83937717,0.00016438,2]
[403664876,1769455842238,-1029.83937717,0.00016438,2]
[403664877,1769455842247,-1029.83937717,0.00016438,2]
[403664878,1769455842257,-1029.83937717,0.00016438,2]
[403664879,1769455842267,-1029.83937717,0.00016438,2]
[403664880,1769455842277,-1029.83937717,0.00016438,2]
[403664881,1769455842286,-1029.83937717,0.00016438,2]
[403664882,1769455842296,-1029.83937717,0.00016438,2]
[403664883,1769455842306,-1029.83937717,0.00016438,2]
[403664884,1769455842316,-1029.83937717,0.00016438,2]
[403664885,1769455842325,-1029.83937716,0.00016438,2]
[403664886,1769455842335,-150.0,0.00016438,2]
[403664887,1769455842345,-798.0,0.00016438,2]
[403664888,1769455842355,-267.46074303,0.00016438,2]
[403664889,1769455842366,-500.0,0.00016444,2]
[403664890,1769455842375,-200.0,0.00016449,2]
[403664891,1769455842385,-9160.91605802,0.00016477,2]
[403664892,1769455842394,-150.0,0.00016493,2]
[403664893,1769455842404,-9577.0107416,0.000165,2]
[403664894,1769455842413,-181.08010149,0.00016504,2]
[403664895,1769455842423,-209.40437684,0.00016504,2]
[403664897,1769455842433,-151.0,0.00016504,2]
[403664898,1769455842443,-854.2589148,0.00016504,2]
[403664899,1769455842452,-642.94,0.00016504,2]
[403664900,1769455842461,-500.0,0.00016504,2]
[403664901,1769455842470,-890.0,0.00016513,2]
[403664902,1769455842479,-500.0,0.00016528,2]
[403664903,1769455842489,-307.45601862,0.00016534,2]
[403664904,1769455842498,-5166.21725144,0.00016544,2]
[403664905,1769455842507,-154.14477787,0.00016548,2]
[403664906,1769455842517,-166.66,0.00016551,2]
[403664907,1769455842526,-200.0,0.00016613,2]
[403664909,1769455842535,-245.0,0.0001664,2]
[403664911,1769455842545,-9160.91605802,0.00016714,2]
[403664913,1769455842555,-856.0,0.0001672,2]
[403664914,1769455842564,-171.68,0.00016732,2]
[403664915,1769455842573,-837.0,0.00016743,2]
[403664916,1769455842583,-242.69,0.00016769,2]
[403664917,1769455842593,-5166.21725144,0.0001677,2]
[403664918,1769455842602,-890.0,0.00016787,2]
[403664919,1769455842615,-1000.0,0.0001681,2]
[403664920,1769455842625,-275.48990067,0.00016878,2]
[403664921,1769455842635,-500.0,0.00016883,2]
[403664922,1769455842644,-500.0,0.00016883,2]
[403664923,1769455842655,-150.0,0.00016884,2]
[403664924,1769455842665,-500.0,0.00016884,2]
[403664926,1769455842675,-573.39128735,0.00016884,2]
[403664928,1769455842686,-500.0,0.00016884,2]
[403664930,1769455842696,-162.93573151,0.00016884,2]
[403664933,1769455842705,-500.0,0.00016884,2]
[403664935,1769455842715,-163.26940322,0.00016884,2]
[403664936,1769455842725,-559.01847466,0.00016884,2]
[403664937,1769455842734,-161.35686202,0.00016884,2]
[403664938,1769455842743,-150.92743294,0.00016884,2]
[403664939,1769455842753,-521.69766282,0.00016884,2]
[403664940,1769455842763,-500.0,0.00016884,2]
[403664941,1769455842772,-500.0,0.00016884,2]
[403664942,1769455842783,-500.0,0.00016884,2]
[403664943,1769455842792,-500.0,0.00016884,2]
[403664944,1769455842802,-500.0,0.00016884,2]
[403664946,1769455842811,-500.0,0.00016884,2]
[403664947,1769455842821,-500.0,0.00016884,2]
[403664948,1769455842830,-500.0,0.00016884,2]
[403664949,1769455842840,-500.0,0.00016884,2]
[403664950,1769455842849,-500.0,0.00016884,2]
[403664951,1769455842858,-500.0,0.00016884,2]
[403664952,1769455842867,-300.0,0.00016884,2]
[403664953,1769455842877,-161.26653539,0.00016884,2]
[403664954,1769455842886,-333.28418579,0.00016884,2]
[403664955,1769455842896,-500.0,0.00016884,2]
[403664956,1769455842906,-161.79669812,0.00016884,2]
[403664957,1769455842916,-500.0,0.00016884,2]
[403664958,1769455842926,-500.0,0.00016884,2]
[403664959,1769455842937,-500.0,0.00016884,2]
[403664960,1769455842948,-500.0,0.00016884,2]
[403664961,1769455842959,-500.0,0.00016884,2]
[403664962,1769455842969,-500.0,0.00016884,2]
[403664963,1769455842981,-160.10406232,0.00016884,2]
[403664964,1769455842991,-161.02070758,0.00016884,2]
[403664965,1769455843001,-160.09618491,0.00016884,2]
[403664966,1769455843011,-160.10752734,0.00016884,2]
[403664967,1769455843021,-160.03318119,0.00016884,2]
[403664968,1769455843030,-500.0,0.00016884,2]
[403664969,1769455843039,-163.15888102,0.00016884,2]
[403664970,1769455843049,-500.0,0.00016884,2]
[403664971,1769455843058,-500.0,0.00016884,2]
[403664972,1769455843068,-208.18830285,0.00016884,2]
[403664973,1769455843078,-500.0,0.00016884,2]
[403664974,1769455843088,-500.0,0.00016884,2]
[403664975,1769455843097,-500.0,0.00016884,2]
[403664976,1769455843107,-160.10588668,0.00016884,2]
[403664977,1769455843117,-160.0879285,0.00016884,2]
[403664978,1769455843127,-500.0,0.00016884,2]
[403664979,1769455843136,-160.10504853,0.00016884,2]
[403664980,1769455843146,-160.10409569,0.00016884,2]
[403664981,1769455843159,-160.10568478,0.00016884,2]
[403664982,1769455843169,-500.0,0.00016884,2]
[403664983,1769455843179,-500.0,0.00016884,2]
[403664984,1769455843189,-500.0,0.00016884,2]
[403664985,1769455843199,-336.04474913,0.00016884,2]
[403664986,1769455843209,-500.0,0.00016884,2]
[403664987,1769455843219,-180.11638707,0.00016884,2]
[403664988,1769455843229,-500.0,0.00016884,2]
[403664989,1769455843238,-160.35517843,0.00016884,2]
[403664990,1769455843249,-500.0,0.00016884,2]
[403664991,1769455843258,-500.0,0.00016884,2]
[403664992,1769455843268,-158.12162723,0.00016884,2]
[403664993,1769455843278,-160.105891,0.00016884,2]
[403664994,1769455843288,-512.34755088,0.00016884,2]
[403664995,1769455843298,-500.0,0.00016884,2]
[403664996,1769455843307,-160.05036115,0.00016884,2]
[403664997,1769455843317,-500.0,0.00016884,2]
[403664998,1769455843327,-500.0,0.00016884,2]
[403665000,1769455843336,-500.0,0.00016884,2]
[403665003,1769455843346,-208.64053096,0.00016884,2]
[403665004,1769455843355,-500.59346825,0.00016884,2]
[403665006,1769455843365,-500.0,0.00016884,2]
[403665008,1769455843375,-284.17906244,0.00016884,2]
[403665010,1769455843385,-161.09735774,0.00016884,2]
[403665011,1769455843395,-161.96822861,0.00016884,2]
[403665012,1769455843404,-500.0,0.00016884,2]
[403665013,1769455843414,-471.11609188,0.00016884,2]
[403665014,1769455843423,-500.0,0.00016884,2]
[403665015,1769455843434,-164.62413904,0.00016884,2]
[403665016,1769455843443,-500.0,0.00016884,2]
[403665017,1769455843453,-500.0,0.00016884,2]
[403665018,1769455843462,-167.838992,0.00016884,2]
[403665019,1769455843472,-161.30149315,0.00016884,2]
[403665020,1769455843481,-500.0,0.00016884,2]
[403665021,1769455843490,-500.0,0.00016884,2]
[403665022,1769455843500,-500.0,0.00016884,2]
[403665023,1769455843510,-169.57046626,0.00016884,2]
[403665024,1769455843519,-160.00359926,0.00016884,2]
[403665025,1769455843533,-500.0,0.00016884,2]
[403665026,1769455843543,-500.0,0.00016884,2]
[403665027,1769455843553,-500.0,0.00016884,2]
[403665028,1769455843563,-500.0,0.00016884,2]
[403665029,1769455843572,-500.0,0.00016884,2]
[403665030,1769455843582,-511.9238305,0.00016884,2]
[403665031,1769455843593,-548.32332639,0.00016884,2]
[403665032,1769455843603,-309.0024886,0.00016884,2]
[403665033,1769455843614,-500.0,0.00016884,2]
[403665034,1769455843624,-166.49490539,0.00016884,2]
[403665035,1769455843633,-165.77830412,0.00016884,2]
[403665036,1769455843643,-162.53079181,0.00016884,2]
[403665037,1769455843653,-500.0,0.00016884,2]
[403665038,1769455843663,-500.0,0.00016884,2]
[403665039,1769455843673,-500.0,0.00016884,2]
[403665040,1769455843683,-485.73612495,0.00016884,2]
[403665041,1769455843695,-500.0,0.00016884,2]
[403665042,1769455843705,-509.00464684,0.00016884,2]
[403665043,1769455843715,-500.0,0.00016884,2]
[403665044,1769455843726,-1200.0,0.000169,6]
[403665045,1769455843736,-336.65560897,0.000169,2]
[403665046,1769455843746,-740.1790973,0.000169,2]
[403665047,1769455843757,-245.0,0.00016945,2]
[403665048,1769455843768,-9160.91605802,0.00016952,2]
[403665049,1769455843778,-446.04265821,0.0001697,2]
[403665050,1769455843787,-798.0,0.00016986,2]
[403665051,1769455843796,-5166.21725144,0.00016996,2]
[403665052,1769455843806,-250.0,0.00017,2]
[403665053,1769455843816,-311141.3143789,0.00017,2]
[403665054,1769455843826,-160.0,0.00017,2]
[403665055,1769455843836,-187.78006525,0.00017052,2]
[403665056,1769455843848,-217.15233878,0.00017052,2]
[403665057,1769455843859,-151.0,0.00017052,2]
[403665058,1769455843870,-885.86649465,0.00017052,2]
[403665059,1769455843880,-666.72878,0.00017052,2]
[403665060,1769455843892,-500.0,0.00017052,2]
[403665061,1769455843903,-150.00235713,0.00017055,2]
[403665062,1769455843916,-890.0,0.00017061,2]
[403665063,1769455843926,-737.0,0.00017135,2]
[403665064,1769455843936,-2851.17,0.00017154,2]
[403665065,1769455843945,-245.0,0.00017183,2]
[403665066,1769455843955,-9160.91605802,0.00017189,2]
[403665067,1769455843965,-166.66,0.00017207,2]
[403665068,1769455843975,-5166.21725144,0.00017222,2]
[403665069,1769455843985,-737.0,0.00017235,2]
[403665070,1769455843994,-159.18817302,0.00017277,2]
[403665071,1769455844004,-854.9650287,0.00017315,2]
[403665072,1769455844013,-500.0,0.0001732,2]
[403665073,1769455844023,-334.5472959,0.00017325,2]
[403665074,1769455844032,-562.11895918,0.00017332,2]
[403665075,1769455844042,-890.0,0.00017335,2]
[403665076,1769455844051,-250.0,0.00017343,2]
[403665077,1769455844061,-418.44,0.00017408,2]
[403665078,1769455844071,-150.2937682,0.00017432,2]
[403665079,1769455844082,-1000.0,0.00017432,2]
[403665080,1769455844091,-749.2094095,0.00017432,2]
[403665081,1769455844101,-792.30789436,0.00017432,2]
[403665082,1769455844112,-597.46779081,0.00017432,2]
[403665083,1769455844122,-1000.0,0.00017432,2]
[403665084,1769455844132,-1000.0,0.00017432,2]
[403665085,1769455844141,-826.19937569,0.00017432,2]
[403665086,1769455844151,-1000.0,0.00017432,2]
[403665087,1769455844161,-1000.91009756,0.00017432,2]
[403665088,1769455844171,-1000.0,0.00017432,2]
[403665089,1769455844182,-463.18396516,0.00017432,2]
[403665090,1769455844191,-1000.0,0.00017432,2]
[403665091,1769455844202,-1000.0,0.00017432,2]
[403665092,1769455844211,-700.3059212,0.00017432,2]
[403665093,1769455844221,-600.26267219,0.00017432,2]
[403665094,1769455844232,-483.90534832,0.00017432,2]
[403665095,1769455844241,-1000.0,0.00017432,2]
[403665096,1769455844250,-1000.27422086,0.00017432,2]
[403665097,1769455844260,-1000.0,0.00017432,2]
[403665098,1769455844271,-1000.0,0.00017432,2]
[403665099,1769455844281,-1000.0,0.00017432,2]
[403665100,1769455844295,-182.12522668,0.00017432,2]
[403665101,1769455844304,-1000.0,0.00017432,2]
[403665102,1769455844314,-1000.0,0.00017432,2]
[403665103,1769455844323,-1000.0,0.00017432,2]
[403665104,1769455844333,-1000.0,0.00017432,2]
[403665105,1769455844343,-1000.0,0.00017432,2]
[403665106,1769455844352,-375.25011324,0.00017432,2]
[403665107,1769455844361,-1084.53861149,0.00017432,2]
[403665108,1769455844370,-1000.0,0.00017432,2]
[403665109,1769455844379,-1000.0,0.00017432,2]
[403665110,1769455844389,-172.17559996,0.00017432,2]
[403665111,1769455844398,-1000.92344922,0.00017432,2]
[403665112,1769455844408,-613.35697276,0.00017432,2]
[403665113,1769455844417,-1000.0,0.00017432,2]
[403665114,1769455844427,-1000.0,0.00017432,2]
[403665115,1769455844435,-1000.0,0.00017432,2]
[403665116,1769455844444,-1000.62809679,0.00017432,2]
[403665117,1769455844454,-1000.71345876,0.00017432,2]
[403665118,1769455844463,-184.66761721,0.00017432,2]
[403665119,1769455844472,-1000.0,0.00017432,2]
[403665120,1769455844482,-1000.0,0.00017432,2]
[403665121,1769455844492,-1000.0,0.00017432,2]
[403665122,1769455844501,-1000.0,0.00017432,2]
[403665123,1769455844511,-1000.37494334,0.00017432,2]
[403665124,1769455844521,-275.87290132,0.00017432,2]
[403665125,1769455844531,-1000.50836351,0.00017432,2]
[403665126,1769455844540,-672.85721293,0.00017432,2]
[403665127,1769455844550,-1000.0,0.00017432,2]
[403665128,1769455844560,-1000.0,0.00017432,2]
[403665129,1769455844569,-1000.0,0.00017432,2]
[403665130,1769455844579,-557.85157046,0.00017432,2]
[403665131,1769455844588,-1075.19044869,0.00017432,2]
[403665132,1769455844598,-500.55962396,0.00017432,2]
[403665133,1769455844607,-1000.88574824,0.00017432,2]
[403665134,1769455844620,-1000.63653282,0.00017432,2]
[403665135,1769455844630,-868.30615195,0.00017432,2]
[403665136,1769455844639,-666.87439448,0.00017432,2]
[403665137,1769455844649,-1000.0,0.00017432,2]
[403665138,1769455844659,-1680.0,0.00017433,2]
[403665139,1769455844668,-5166.21725144,0.00017448,2]
[403665140,1769455844677,-250.0,0.00017449,2]